Cogmind - Beta 13 @@@ ROGUE MODE // 2024.06.11 @ 11:29:24 Player: Verbt Result: Destroyed by G-34 Mercenary with Small Laser Performance ------------- Evolutions (1) 500 Regions Visited (2) 400 Robots Destroyed (16) 80 Value Destroyed (390) 390 Prototype IDs (0) 0 Alien Tech Used (0) 0 Bonus (0) 0 TOTAL SCORE: 1370 Bonus ------- None Cogmind --------- Core Integrity 0/400 Matter 121/300 Energy 114/250 System Corruption 5% Temperature Cool (37) Movement Walking (330) Ox3 Location -9/Materials Parts ------- > --- POWER (1) -------- Ion Engine > --- PROPULSION (2) --- Aluminum Leg > --- UTILITY (4) ------ Large Storage Unit > --- WEAPON (2) ------- Light Cannon Light Cannon > --- INVENTORY (15) --- Light Nuclear Core Flight Unit Large Storage Unit Huge Storage Unit High-capacity Matter Pod (0) Peak State ------------ > --- POWER ------------ Light Nuclear Core > --- PROPULSION ------- Wheel Compact Wheel > --- UTILITY ---------- Large Storage Unit Structural Scanner Sensor Array Light Armor Plating > --- WEAPON ----------- Medium Laser Light Cannon > --- INVENTORY -------- Ion Engine Light Ion Engine Light Treads Light Treads Aluminum Leg Aluminum Leg Flight Unit Large Storage Unit Huge Storage Unit High-capacity Matter Pod Light Assault Rifle Light Cannon Light Cannon [Rating: 12] Favorites ----------- Power Light Ion Engine Engine Light Ion Engine Power Core Light Nuclear Core Propulsion Compact Wheel Treads Light Treads Leg Aluminum Leg Wheel Compact Wheel Utility Large Storage Unit Device Sensor Array Storage Large Storage Unit Protection Light Armor Plating Weapon Medium Laser Energy Gun Medium Laser Ballistic Gun Light Assault Rifle Ballistic Cannon Light Cannon Launcher Grenade Launcher Build | -11 -10 -9 ------- Run | Yrd Mat Mat Slots Evolved 2 | . . 2 Power . | . . . Propulsion . | . . . Utility 2 | . . 2 Weapon . | . . . Parts Attached 38 | 6 20 12 Power 5 | 1 2 2 Engine 4 | 1 1 2 Core 1 | . 1 . Reactor . | . . . Propulsion 16 | 2 10 4 Treads 3 | . 1 2 Leg 8 | 2 4 2 Wheel 5 | . 5 . Hover . | . . . Flight . | . . . Utility 8 | 1 5 2 Device 3 | . 1 2 Storage 4 | 1 3 . Processor . | . . . Hackware . | . . . Protection 1 | . 1 . Artifact . | . . . Weapon 9 | 2 3 4 Energy Gun 3 | 1 1 1 Energy Cannon . | . . . Ballistic Gun 2 | 1 . 1 Ballistic Cannon 3 | . 1 2 Launcher 1 | . 1 . Special Weapon . | . . . Impact Weapon . | . . . Slashing Weapon . | . . . Piercing Weapon . | . . . Special Melee Weapon . | . . . Unidentified Prototypes . | . . . Parts Lost 15 | . 3 12 Power 2 | . 1 1 Propulsion 6 | . 1 5 Utility 3 | . . 3 Weapon 4 | . 1 3 Highest Loss Streak 12 | . 2 12 To Critical Strikes . | . . . Average Slot Usage (%) 89 | . 91 85 Engine 9 | . 12 3 Core 2 | . 1 5 Leg 5 | . 7 . Wheel 18 | . 19 15 Device 7 | . 4 16 Storage 13 | . 14 11 Protection 4 | . 2 8 Energy Gun 11 | . 13 6 Ballistic Cannon 4 | . 2 10 Launcher 8 | . 11 . Naked Turns . | . . . Heaviest Build 108 | 11 108 35 Greatest Support 40 | 20 26 40 Greatest Overweight (x) 6 | 2 4 6 Average Overweight (x) . | . . . Largest Inventory Capacity 25 | 8 25 15 Average Capacity 14 | 7 14 15 Most Carried 15 | 6 15 13 Average Carried 12 | 3 13 12 Final Capacity 15 | 8 15 15 Final Carried 14 | 6 14 5 Class Distribution -------------------- 100% | Mutant Dominant Class ---------------- Mutant | -10/Materials Mutant | -9/Materials Resources | -11 -10 -9 ----------- Run | Yrd Mat Mat Matter Collected 440 | 240 69 131 Remotely . | . . . Salvage Created 368 | . 177 191 Parts 30 | . 20 10 Haulers Intercepted . | . . . Recyclers Shooed . | . . . Parts Field Recycled . | . . . Retrieved Matter . | . . . Parts Self-Destructed . | . . . Prevented . | . . . Kills | -11 -10 -9 ------- Run | Yrd Mat Mat Combat Hostiles Destroyed 12 | . 7 5 Melee 3 | . . 3 Guns 1 | . 1 . Cannons 3 | . 1 2 AOE 5 | . 5 . Classes Destroyed 4 | . 3 1 Builder 2 | . . 2 Watcher 2 | . 2 . Swarmer 4 | . 3 1 Grunt 8 | . 4 4 Best Kill Streak 5 | . 5 4 Combat Bots Only 4 | . 4 3 Max Kills in Single Turn 2 | . 1 2 Gunslinging . | . . . Exploded 1 | . 1 . Melee 1 | . . 1 Uniques/NPCs Destroyed . | . . . Combat | -11 -10 -9 -------- Run | Yrd Mat Mat Hostile Shots Fired 213 | . 26 187 Missed 55 | . 8 47 Damage Taken 1908 | . 369 1539 Core 448 | . 41 407 Absorbed by Shields . | . . . Regen/Repaired (Parts) 79 | . 79 . Core Remaining (%) 91 | 100 83 . Volleys Fired 34 | . 16 18 Largest 2 | . 2 2 Hottest 85 | . 85 85 Shots Fired 62 | . 28 34 Gun 32 | . 16 16 Cannon 20 | . 2 18 Launcher 10 | . 10 . Special . | . . . Kinetic 29 | . 2 27 Thermal 23 | . 16 7 Explosive 10 | . 10 . Electromagnetic . | . . . Robot Hit Streak 7 | . 4 7 Robot Miss Streak 11 | . 4 11 Penetration Max . | . . . Secondary Targets . | . . . Shots Hit Robots 30 | . 14 16 Core Hits 27 | . 12 15 Critical Kills . | . . . Critical Parts Destroyed . | . . . Critical Strikes 3 | . . 3 Burn 2 | . . 2 Blast 1 | . . 1 Melee Attacks . | . . . Impact . | . . . Slashing . | . . . Piercing . | . . . Sneak Attacks . | . . . Combat Hostiles . | . . . Follow-up Attacks . | . . . Damage Inflicted 884 | . 530 354 Guns 170 | . 93 77 Cannons 224 | . 36 188 Explosions 399 | . 399 . Melee . | . . . Ramming 91 | . 2 89 Kinetic 248 | . 36 212 Thermal 146 | . 93 53 Explosive 399 | . 399 . Electromagnetic . | . . . Impact . | . . . Slashing . | . . . Piercing . | . . . Highest Corruption 5 | . . 5 Average Corruption 5 | . . 5 Corruption Purged . | . . . Corruption Blocked . | . . . Effects 4 | . . 4 Message Errors 2 | . . 2 Data Loss (minor) 1 | . . 1 Weapon Failures 1 | . . 1 Overload Shots . | . . . Overflow Damage 4 | . 4 . Projectiles . | . . . Explosions 4 | . 4 . Melee . | . . . Knockbacks 3 | . . 3 Impact 1 | . . 1 Kinetic 2 | . . 2 Secondary . | . . . Self-Inflicted Damage 194 | . 160 34 Shots 7 | . 7 . Rammed 22 | . 1 21 Targets Rammed 24 | . 1 23 Kicked . | . . . Crushed 2 | . . 2 Highest Temperature 120 | . 120 90 Average Temperature 38 | . 49 26 Received Heat Transfer 780 | . 96 684 Siege Activations . | . . . Robots Corrupted . | . . . Combat Hostiles . | . . . Parts Fried . | . . . Impact Corruptions . | . . . Robots Melted . | . . . Combat Hostiles . | . . . Parts Melted 2 | . . 2 Heat Transferred 555 | . 259 296 Parts Sabotaged . | . . . Parts Stolen . | . . . Parts Stripped . | . . . Power Chain Reactions . | . . . Alert | -11 -10 -9 ------- Run | Yrd Mat Mat Peak Influence 148 | . 148 127 Initial 62 | . . 62 Average 47 | . 39 82 Maximum Alert Level . | . . . Low Security (%) 100 | 100 100 100 Level 1 . | . . . Level 2 . | . . . Level 3 . | . . . Level 4 . | . . . Level 5 . | . . . High Security . | . . . Max Security . | . . . Squads Dispatched 2 | . 1 1 Investigation 1 | . . 1 Extermination . | . . . Reinforcement 1 | . 1 . Assault . | . . . Garrison . | . . . Intercept . | . . . Searches Triggered . | . . . Construction Impeded . | . . . Haulers Reinforced . | . . . Active Scanning Responses . | . . . Cargo Convoy Interrupts . | . . . Stealth | -11 -10 -9 --------- Run | Yrd Mat Mat Distress Signals 4 | . . 4 Communications Jammed . | . . . Distress Signals . | . . . Times Spotted 30 | . 12 18 Peak Tracking Total 13 | . 6 13 Tactical Retreats 1 | . . 1 Traps | -11 -10 -9 ------- Run | Yrd Mat Mat Traps Triggered 1 | . . 1 Indirectly . | . . . Trap Hack Attempts . | . . . Triggered . | . . . Disarmed . | . . . Reprogrammed . | . . . Reused . | . . . Traps Extracted . | . . . Installed . | . . . Triggered . | . . . Machines | -11 -10 -9 ---------- Run | Yrd Mat Mat Machines Disabled 1 | . 1 . Max in Single Turn 1 | . 1 . Machines Repaired . | . . . Machines Dismantled . | . . . Machines Sabotaged . | . . . Overloaded Fab Kills . | . . . Hacking | -11 -10 -9 --------- Run | Yrd Mat Mat Machines Accessed 3 | . 3 . Terminals 2 | . 2 . Fabricators . | . . . Repair Stations 1 | . 1 . Recycling Units . | . . . Scanalyzers . | . . . Garrison Access . | . . . Total Hacks 10 | . 10 . Successful 9 | . 9 . Failed 1 | . 1 . Catastrophic . | . . . Database Lockouts . | . . . Manual . | . . . Terminals 6 | . 6 . Fabricators . | . . . Repair Stations 4 | . 4 . Recycling Units . | . . . Scanalyzers . | . . . Garrison Access . | . . . Terminal Hacks 5 | . 5 . Record 2 | . 2 . Robot Analysis 1 | . 1 . Alert Level 1 | . 1 . Dispatch Records 1 | . 1 . Fabricator Hacks . | . . . Repair Station Hacks 4 | . 4 . Scan Component 2 | . 2 . Repair 2 | . 2 . Recycling Unit Hacks . | . . . Scanalyzer . | . . . Garrison Access Hacks . | . . . Unauthorized Hacks . | . . . Terminals . | . . . Fabricators . | . . . Repair Stations . | . . . Recycling Units . | . . . Scanalyzers . | . . . Garrison Access . | . . . Data Cores Recovered . | . . . Used . | . . . Hacking Detections 1 | . 1 . Full Trace Events . | . . . Feedback Events . | . . . Feedback Blocked . | . . . Robot Schematics Acquired . | . . . Robots Built . | . . . Authchips . | . . . Time . | . . . Total Robot Build Rating . | . . . Part Schematics Acquired . | . . . Parts Built . | . . . Authchips . | . . . Time . | . . . Total Part Build Rating . | . . . Parts Repaired 2 | . 2 . Time 52 | . 52 . Parts Recycled . | . . . Recycled Matter . | . . . Retrieved Matter . | . . . Retrieved Components . | . . . Parts Scanalyzed . | . . . Part Schematics Acquired . | . . . Parts Damaged . | . . . Bothacking | -11 -10 -9 ------------ Run | Yrd Mat Mat Used RIF Installer . | . . . Robots Hacked . | . . . Non-combat . | . . . Combat . | . . . Robot Hacks Applied . | . . . Relay Couplers Released . | . . . Fabnet Peak Effective % . | . . . Robots Rewired . | . . . Allies Hacked . | . . . Hacks Repelled . | . . . Allies | -11 -10 -9 -------- Run | Yrd Mat Mat Total Allies . | . . . Largest Group . | . . . Highest-Rated Group . | . . . Highest-Rated Ally . | . . . Total Orders . | . . . Ally Attacks . | . . . Total Damage . | . . . Kills . | . . . Allies Corrupted . | . . . Allies Melted . | . . . Intel | -11 -10 -9 ------- Run | Yrd Mat Mat Robot Analysis Total 1 | . 1 . Derelict Logs Recovered . | . . . Drone Launches . | . . . Drone Recoveries . | . . . Exploration | -11 -10 -9 ------------- Run | Yrd Mat Mat Turns Passed 1207 | 113 780 314 Spaces Moved 808 | 87 540 181 Core 20 | 19 . 1 Treads 16 | . . 16 Legs 161 | 68 91 2 Wheels 611 | . 449 162 Hover . | . . . Flight . | . . . Fastest Speed 50 | 50 105 105 Average Speed 116 | 113 117 112 Slowest Speed 350 | 150 260 350 Overloaded Moves . | . . . Propulsion Burnouts . | . . . Robots Hopped . | . . . Cave-ins Triggered . | . . . Exploration Rate (%) 23 | 5 48 16 Regions Visited 2 Branch Regions . Pre-discovered Areas . | . . . Known Exits Taken . | . . . Unknown Exits Taken 2 | 1 1 . Scrap Searched . | . . . Spaces Dug . | . . . Terrain Destroyed 68 | . 68 . Melee . | . . . Projectile . | . . . AOE 68 | . 68 . Terrain Rammed . | . . . Walls Destroyed . | . . . Machines Disabled . | . . . Actions | -11 -10 -9 --------- Run | Yrd Mat Mat Total 1008 | 98 659 251 Wait 69 | . 52 17 Move 806 | 86 539 181 Hop . | . . . Pick Up 20 | 6 14 . Fast Attach 14 | 6 7 1 Attach 20 | . 11 9 Detach 10 | . 10 . Swap 4 | . 2 2 Drop 7 | . 7 . Fire 34 | . 16 18 Melee . | . . . Ram 17 | . 1 16 Kick . | . . . Crush 7 | . . 7 Escape Stasis . | . . . Rewire . | . . . Trap . | . . . Miscellaneous . | . . . Route ------- -11/Scrapyard -10/Materials (discovered 2 exits: [*Mat x2]) -9/Materials History --------- Turn | Location | Event 18 | -11/Scrapyard | Discovered new exit (range 15) 114 | -11/Scrapyard | Entered Materials 315 | -10/Materials | Build established: Mutant 577 | -10/Materials | Repaired Med. Laser 593 | -10/Materials | Discovered new exit (range 16) 708 | -10/Materials | Discovered new exit (range 13) 857 | -10/Materials | Repaired Com. Wheel 894 | -10/Materials | Entered another Materials area 894 | -9/Materials | Evolved 2 slots: Utility x2 1189 | -9/Materials | Core integrity fell below 50% 1195 | -9/Materials | Core integrity fell below 20% 1208 | -9/Materials | Destroyed by G-34 Mercenary with Small Laser Last Messages --------------- K-01 Serf collects debris. Slammed into G-34 Mercenary. K-01 Serf destroyed. FIZ:EY2DPL4S7CNIV Lgt. Treads destroyed. Structural Scanner destroyed. Slammed into S-10 Pest. Crushed S-10 Pest. S-10 Pest destroyed. Lgt. Treads destroyed. G-34 Mercenary destroyed. U-05 Engineer destroyed. S-10 Pest destroyed. G-34 Mercenary destroyed. G-34 Mercenary knocked back. System corrupted: Component data lost. K-01 Serf collects debris. Aluminum Leg destroyed. Map ----- +----------------------------------------------------+ | ????????????????????????## """"" # # ?????????? | | ????????????????????????## + + ?????????? | | ????????????????????????## """"" # # ?????????? | | ????????????????????????## """"" # # ?????????? | | ????????????????????????## """"" # # ?????????? | | ??????????????? ### # # ?????????? | | ???????????????#+################## # ?????????? | | ??????????????? = = # ??? | | ??????????????? % ############ | | ??????????????? %! ##### | | ???????????????? #########= #+#### | | ????????????????########## # ## ##### | | ????????????????????????## # ## #####+###### | | ????????????????????????## # ## # ??? | | ????????????????????????## # ## # ??????"??? | | ????????????????????????## # ## # ?????????? | | ????????????????????????## # ## # ?????????? | | ????????????????????????## [# ## # ?????????? | | ????????????????????????## ###### # ?????????? | | ????????????????????????## % ###### # ????? | | ????????????????????????##= g###### #######????? | | ????????????????????????##%gs= % ##????? | | ????????????????????????##==gg! s ##????? | | ????????????????????????## %*%= k % ##????? | | ?????????????????######### *[= ##????? | | ?????????????+ @ ##????? | | ?????????????????####################### # ????? | | ?????????????????????######### # # ????? | | ???????????????????????????????????????? # ????? | | ????????????????????????????????????????? # ????? | | ????????????????????????????????????????? # ????? | | ????????????????????????????????????????? + ????? | | ?????????????????????????????????????????? # ????? | | ?????????????????????????????????????????? # ????? | | ?????????????????????????????????????????????????? | | ?????????????????????????????????????????????????? | | ?????????????????????????????????????????????????? | | ?????????????????????????????????????????????????? | | ?????????????????????????????????????????????????? | | ?????????????????????????????????????????????????? | | ?????????????????????????????????????????????????? | | ?????????????????????????????????????????????????? | | ?????????????????????????????????????????????????? | | ?????????????????????????????????????????????????? | | ?????????????????????????????????????????????????? | | ?????????????????????????????????????????????????? | | ?????????????????????????????????????????????????? | | ?????????????????????????????????????????????????? | | ?????????????????????????????????????????????????? | | ?????????????????????????????????????????????????? | +----------------------------------------------------+ Best States ------------- Heat Dissipation 28 Energy Generation 14 Energy Capacity 250 Matter Stores 280 Matter Capacity 300 Sight Range 16 Robot Scan Range 14 Terrain Scan Density 10 Armor Coverage 150 Evasion (%) 55 Recoil Reduction 2 Item Schematics ----------------- None Robot Schematics ------------------ None Fabricated ------------ Nothing Alien Tech Used ----------------- None Achievements -------------- Oops Challenges ------------ None Game ------ Seed RegenerativeChipStorm Manual? 0 Play Time 00:22:21 Cumulative 3.1 hours Start 2024.06.11 @ 11:07:21 End 2024.06.11 @ 11:29:24 Sessions 1 Manual Loads 0 Difficulty Rogue Special Mode None Game No. 5 Rogue 5 Adventurer 0 Explorer 0 Win Type - Total 0 Types 0/0/0/0/0/0/0/0/0 Lore% 7 Gallery% 6 Achievement% 7 Wizard Run 0 Options --------- Layout 1 ASCII 0 Keyboard 1 Movement Vi Keybinds 0 Fullscreen 1 Font 24/Smallcaps Map View 50x35 Zoom Use 0% Tactical HUD 0 Map Filters NONE Filters NONE Steam 1 RUN: 43a1987b-4a2a-4971-8cf0-1f03f31fe459